Cogmind - Beta 16.1 @@@ ROGUE MODE // 2026.03.26 @ 19:24:40 Player: DenchikZalaziet Result: Self-destructed Performance ------------- Evolutions (5) 2500 Regions Visited (10) 2000 Robots Destroyed (70) 350 Value Destroyed (1788) 1788 Prototype IDs (38) 760 Alien Tech Used (0) 0 Bonus (300) 300 TOTAL SCORE: 7698 Bonus ------- Aligned with FarCom 300 Cogmind --------- Core Integrity 494/1000 Matter 288/300 Energy 150/150 System Corruption 6% Temperature Cool (0) Movement Flying (105) Ox1 Location -5/Factory Parts ------- > --- POWER (3) -------- Micro Fission Core > --- PROPULSION (6) --- Improved VTOL Module > --- UTILITY (6) ------ Hacking Suite > --- WEAPON (2) ------- Mace > --- INVENTORY (5) ---- Micro Fission Core Enhanced Gauss Cannon Heavy Rocket Launcher Peak State ------------ > --- POWER ------------ Light Deuterium Engine Fission Core Fission Core > --- PROPULSION ------- Improved VTOL Module Improved VTOL Module Improved VTOL Module Improved VTOL Module Xenon Bombardment Thruster Nuclear Pulse Thruster > --- UTILITY ---------- Structural Scanner Advanced ECM Suite Hacking Suite Hacking Suite Hacking Suite Hacking Suite > --- WEAPON ----------- Enhanced Gauss Cannon Power Maul > --- INVENTORY -------- Improved VTOL Module Improved Light Armor Plating Heavy Rocket Launcher [Rating: 66] Favorites ----------- Power Light Nuclear Core Engine Light Ion Engine Power Core Light Nuclear Core Propulsion Light Treads Treads Light Treads Leg Aluminum Leg Flight Unit Improved VTOL Module Utility Huge Storage Unit Device Seismic Detector Storage Huge Storage Unit Processor Machine Analyzer Hackware Hacking Suite Protection Utility Shielding Weapon Assault Rifle Energy Gun Shock Rifle Energy Cannon YOLO Cannon Ballistic Gun Assault Rifle Ballistic Cannon Light Cannon Launcher Grenade Launcher Special Weapon Mining Laser Impact Weapon Power Maul Slashing Weapon Scythe Special Melee Weapon Datajack Build | -11 -10 -10 -10 -9 -8 -7 -7 -7 -6 -5 ------- Run | Yrd Mat Min Exi Min Mat Fac Low Low Fac Fac Slots Evolved 10 | . . . . . 4 2 . . 2 2 Power 2 | . . . . . . 1 . . . 1 Propulsion 4 | . . . . . 2 1 . . 1 . Utility 4 | . . . . . 2 . . . 1 1 Weapon . | . . . . . . . . . . . Parts Attached 85 | 7 12 4 . 2 31 8 2 1 10 8 Power 18 | 1 4 2 . . 2 3 1 . 2 3 Engine 9 | 1 4 . . . 1 1 1 . . 1 Core 9 | . . 2 . . 1 2 . . 2 2 Reactor . | . . . . . . . . . . . Propulsion 22 | 2 1 1 . 1 13 1 . . 2 1 Treads 6 | 2 1 1 . 1 1 . . . . . Leg 4 | . . . . . 4 . . . . . Wheel . | . . . . . . . . . . . Hover . | . . . . . . . . . . . Flight 12 | . . . . . 8 1 . . 2 1 Utility 19 | 2 3 . . 1 7 2 . . 2 2 Device 7 | 1 . . . 1 4 1 . . . . Storage 2 | 1 1 . . . . . . . . . Processor 2 | . 1 . . . 1 . . . . . Hackware 4 | . . . . . 1 . . . 1 2 Protection 4 | . 1 . . . 1 1 . . 1 . Artifact . | . . . . . . . . . . . Weapon 26 | 2 4 1 . . 9 2 1 1 4 2 Energy Gun 2 | . . . . . 1 . . . 1 . Energy Cannon 2 | . . . . . 1 . . . 1 . Ballistic Gun 5 | 2 1 1 . . . . . . 1 . Ballistic Cannon 2 | . . . . . 1 . . . . 1 Launcher 4 | . 1 . . . 1 . . 1 1 . Special Weapon 3 | . 1 . . . 1 . 1 . . . Impact Weapon 5 | . . . . . 2 2 . . . 1 Slashing Weapon 2 | . . . . . 2 . . . . . Piercing Weapon . | . . . . . . . . . . . Special Melee Weapon 1 | . 1 . . . . . . . . . Unidentified Prototypes 3 | . . . . . 2 . 1 . . . Parts Lost 29 | . . 2 . . 12 . 1 . . 14 Power 6 | . . . . . 1 . 1 . . 4 Propulsion 13 | . . 1 . . 8 . . . . 4 Utility 5 | . . . . . . . . . . 5 Weapon 5 | . . 1 . . 3 . . . . 1 Highest Loss Streak 5 | . . 2 . . 3 . 1 . . 5 To Critical Strikes . | . . . . . . . . . . . Average Backups 14 | . 15 20 22 22 17 4 4 5 4 3 Power 1 | . 2 2 3 3 2 . . . . . Propulsion 2 | . 2 3 4 4 3 . 1 1 . . Utility 4 | . 4 6 6 5 3 2 2 3 2 . Weapon 5 | . 4 6 8 9 6 1 1 1 1 2 Tool/Special . | . . . . . . . . . . . Unused Backups 10 | . . . . . 6 . 1 . 1 2 Power 2 | . . . . . 1 . . . . 1 Propulsion 1 | . . . . . 1 . . . . . Utility 3 | . . . . . 2 . . . 1 . Weapon 4 | . . . . . 2 . 1 . . 1 Tool/Special . | . . . . . . . . . . . Average Slot Usage (%) 97 | . 99 100 100 100 92 99 99 97 93 86 Engine 5 | . 13 9 . . . 1 3 7 . 3 Core 7 | . . 4 14 14 8 13 10 7 12 10 Treads 18 | . 27 28 28 28 12 . . . . . Leg 1 | . . . . . 12 . . . . . Flight 10 | . . . . . 7 37 38 38 40 32 Device 11 | . 3 14 14 14 17 15 15 15 13 7 Storage 9 | . 14 14 14 14 7 . . . . . Processor 1 | . 4 . . . . . . . . . Hackware 4 | . . . . . 1 7 7 7 12 22 Protection 3 | . 5 . . . 8 7 7 7 6 . Ballistic Gun 16 | . 23 27 28 28 6 . . . . . Impact Weapon 2 | . . . . . . 13 14 9 6 5 Special Melee Weapon 1 | . 4 . . . . . . . . . Peak Build Rating 66 | 7 11 12 14 15 34 47 57 48 59 66 Average Rating 22 | 4 9 9 13 14 22 45 46 47 53 55 On Entrance 26 | . 7 9 12 14 15 34 47 47 47 54 Avg Prop Armor Cover (%) 11 | . . . . . 11 . . . . 1 Naked Turns . | . . . . . . . . . . . Heaviest Build 107 | 13 89 92 90 91 107 24 24 29 33 32 Greatest Support 80 | 40 40 40 40 40 80 25 25 25 32 34 Greatest Overweight (x) 31 | . 4 2 2 2 31 7 . 1 1 1 Average Overweight (x) . | . 1 2 2 2 . . . . . . Largest Inventory Capacity 25 | 8 25 25 25 25 25 5 5 5 5 5 Average Capacity 18 | 7 23 25 25 25 20 5 5 5 5 5 Most Carried 25 | 2 19 23 24 25 25 5 5 5 5 5 Average Carried 14 | . 15 20 23 23 17 4 4 4 4 3 Final Capacity 25 | 8 25 25 25 25 5 5 5 5 5 5 Final Carried 25 | 2 19 22 24 25 5 5 5 5 5 3 Class Distribution -------------------- 61% | Mutant 14% | Hacker-Sprinter 12% | Infiltrator-Sprinter 7% | Scavenger-Mutant 3% | Infiltrator-Mutant Dominant Class ---------------- Mutant | -10/Materials Mutant | -10/Mines Mutant | -10/Exiles Mutant | -9/Mines Scavenger-Mutant | -8/Materials Infiltrator-Sprinter | -7/Factory Infiltrator-Sprinter | -7/Lower Caves Infiltrator-Sprinter | -7/Lower Caves Hacker-Sprinter | -6/Factory Hacker-Sprinter | -5/Factory Resources | -11 -10 -10 -10 -9 -8 -7 -7 -7 -6 -5 ----------- Run | Yrd Mat Min Exi Min Mat Fac Low Low Fac Fac Matter Collected 2055 | 178 581 324 . 10 556 70 40 . . 296 Remotely . | . . . . . . . . . . . Salvage Created 2313 | 29 446 134 . . 1068 44 123 56 . 413 Parts 129 | 9 30 7 . . 71 2 1 2 . 7 Haulers Intercepted 6 | . . . . . 5 1 . . . . Recyclers Shooed 2 | . . . . . 1 . . . . 1 Parts Field Recycled . | . . . . . . . . . . . Retrieved Matter . | . . . . . . . . . . . Parts Self-Destructed 1 | . . . . . . . . 1 . . Prevented 1 | . . . . . . . . 1 . . Parts Restored . | . . . . . . . . . . . Kills | -11 -10 -10 -10 -9 -8 -7 -7 -7 -6 -5 ------- Run | Yrd Mat Min Exi Min Mat Fac Low Low Fac Fac Combat Hostiles Destroyed 46 | . 15 3 . . 18 . 2 1 . 7 Melee 9 | . . . . . 5 . . . . 4 Guns 21 | . 12 3 . . 6 . . . . . Cannons 2 | . . . . . 2 . . . . . AOE 8 | . 3 . . . 4 . . 1 . . Classes Destroyed 13 | 1 6 . . . 4 . . . . 2 Builder 2 | . . . . . 1 . . . . 1 Tunneler 3 | 2 . . . . . . . . . 1 Hauler 6 | . . . . . 5 1 . . . . Recycler 5 | . 1 . . . 3 . . . . 1 Mechanic 1 | . 1 . . . . . . . . . Operator 5 | . 3 . . . 2 . . . . . Watcher 2 | . 1 . . . . . . . . 1 Swarmer 19 | . 11 . . . 6 . . . . 2 Cutter 2 | . . . . . . . . . . 2 Grunt 16 | . 4 3 . . 8 . . 1 . . Brawler 2 | . . . . . 2 . . . . . Duelist 2 | . . . . . 2 . . . . . Programmer 3 | . . . . . . . . . . 3 Thug 2 | . . . . . . . 2 . . . Best Kill Streak 5 | 2 4 2 . . 5 1 2 1 . 2 Combat Bots Only 4 | . 3 2 . . 4 . 2 1 . 2 Max Kills in Single Turn 3 | 1 3 1 . . 2 1 1 1 . 1 Gunslinging . | . . . . . . . . . . . Exploded 3 | . 3 . . . 1 . . 1 . . Melee 1 | . . . . . 1 . . . . 1 Uniques/NPCs Destroyed . | . . . . . . . . . . . Combat | -11 -10 -10 -10 -9 -8 -7 -7 -7 -6 -5 -------- Run | Yrd Mat Min Exi Min Mat Fac Low Low Fac Fac Hostile Shots Fired 440 | . 82 24 . . 141 2 7 65 . 119 Missed 143 | . 23 3 . . 39 . 4 29 . 45 Hits 297 | . 59 21 . . 102 2 3 36 . 74 Melee 19 | . . . . . 8 . . . . 11 Projectile 278 | . 59 21 . . 94 2 3 36 . 63 AOE 2 | . . . . . . . . . . 2 Critical Strikes 10 | . . . . . 3 . . . . 7 Damage Taken 4298 | . 518 285 . . 1500 27 84 310 . 1574 Core 991 | . 38 24 . . 338 . 20 65 . 506 Absorbed by Shields . | . . . . . . . . . . . Redirected to Shielding 14 | . . . . . 14 . . . . . Regen/Repaired (Parts) 4 | . 1 . . . 3 . . . . . Core Remaining (%) 80 | 100 . . . 75 38 . . 87 100 . Volleys Fired 125 | 4 63 14 . . 42 . . 2 . . Largest 2 | 2 2 2 . . 2 . . 1 . . Hottest 100 | 40 100 40 . . 100 . . 43 . . Shots Fired 222 | 8 107 28 . . 77 . . 2 . . Gun 206 | 8 105 28 . . 65 . . . . . Cannon 10 | . . . . . 10 . . . . . Launcher 5 | . 1 . . . 2 . . 2 . . Special 1 | . 1 . . . . . . . . . Kinetic 196 | 8 105 28 . . 55 . . . . . Thermal 5 | . 1 . . . 4 . . . . . Explosive 3 | . 1 . . . 2 . . . . . Electromagnetic 18 | . . . . . 16 . . 2 . . Robot Hit Streak 12 | 5 11 12 . . 10 . . 4 . . Robot Miss Streak 7 | 1 3 2 . . 7 . . 1 . . Penetration Max . | . . . . . . . . . . . Secondary Targets . | . . . . . . . . . . . Shots Hit Robots 218 | 6 77 19 . . 73 2 4 1 1 35 Core Hits 85 | 2 30 7 . . 39 1 . 2 . 4 Critical Kills 2 | . 1 . . . 1 . . . . . Critical Parts Destroyed 13 | . . . . . . . 2 . . 11 Critical Strikes 19 | . 1 . . . 5 . 2 . . 11 Meltdown 1 | . . . . . 1 . . . . . Destroy 1 | . 1 . . . . . . . . . Smash 13 | . . . . . . . 2 . . 11 Sever 4 | . . . . . 4 . . . . . Melee Attacks 124 | . 22 . . . 33 3 5 . 4 57 Impact 69 | . . . . . . 3 5 . 4 57 Slashing 33 | . . . . . 33 . . . . . Piercing . | . . . . . . . . . . . Sneak Attacks 37 | . 17 . . . 9 1 1 . 1 8 Combat Hostiles 4 | . . . . . . . 1 . 1 2 Follow-up Attacks 2 | . . . . . . . 1 . . 1 Damage Inflicted 6572 | 70 889 257 . . 2632 190 233 134 114 2053 Guns 1632 | 70 746 257 . . 559 . . . . . Cannons 426 | . . . . . 426 . . . . . Explosions 812 | . 143 . . . 535 . . 134 . . Melee 3702 | . . . . . 1112 190 233 . 114 2053 Ramming . | . . . . . . . . . . . Kinetic 1656 | 70 746 257 . . 583 . . . . . Thermal 784 | . . . . . 784 . . . . . Explosive 229 | . 143 . . . 86 . . . . . Electromagnetic 201 | . . . . . 67 . . 134 . . Impact 2590 | . . . . . . 190 233 . 114 2053 Slashing 1112 | . . . . . 1112 . . . . . Piercing . | . . . . . . . . . . . Highest Corruption 6 | . . . . . . . . . . 6 Average Corruption 4 | . . . . . . . . . . 4 Corruption Purged . | . . . . . . . . . . . Corruption Blocked . | . . . . . . . . . . . Effects 12 | . . . . . . . . . . 12 Message Errors 2 | . . . . . . . . . . 2 Matter Fused 3 | . . . . . . . . . . 3 Heat Flow Errors 4 | . . . . . . . . . . 4 Parts Rejected 2 | . . . . . . . . . . 2 Data Loss (minor) 1 | . . . . . . . . . . 1 Overload Shots . | . . . . . . . . . . . Overflow Damage 1506 | . . . . . 177 39 161 2 59 1068 Projectiles 131 | . . . . . 131 . . . . . Explosions 45 | . . . . . 43 . . 2 . . Melee 1330 | . . . . . 3 39 161 . 59 1068 Knockbacks 15 | . . . . . 1 1 1 . 1 11 Impact 12 | . . . . . . 1 1 . 1 9 Kinetic 1 | . . . . . 1 . . . . . Secondary 2 | . . . . . . . . . . 2 Self-Inflicted Damage . | . . . . . . . . . . . Shots . | . . . . . . . . . . . Rammed . | . . . . . . . . . . . Targets Rammed . | . . . . . . . . . . . Kicked . | . . . . . . . . . . . Crushed . | . . . . . . . . . . . Highest Temperature 394 | . 20 10 . . 44 299 214 58 268 394 Average Temperature 83 | . 10 3 . . 25 70 68 28 95 106 Received Heat Transfer 1146 | . 96 159 . . 639 . 18 108 . 126 Effects 3 | . . . . . . . . . . 3 Energy Bleed 2 | . . . . . . . . . . 2 Short Circuit 1 | . . . . . . . . . . 1 Siege Activations . | . . . . . . . . . . . Martial Activations . | . . . . . . . . . . . Shielding Activations . | . . . . . . . . . . . Robots Disrupted . | . . . . . . . . . . . Combat Hostiles . | . . . . . . . . . . . Robots Corrupted 6 | . . . . . . . 2 . . 4 Combat Hostiles 5 | . . . . . . . 2 . . 3 Parts Fried 12 | . . . . . . . 1 . . 11 Impact Corruptions 42 | . . . . . . 1 5 . 2 34 Robots Melted 1 | . . . . . 1 . . . . . Combat Hostiles 1 | . . . . . 1 . . . . . Parts Melted 1 | . . . . . 1 . . . . . Heat Transferred 800 | . . . . . 800 . . . . . Parts Sabotaged . | . . . . . . . . . . . Parts Stolen . | . . . . . . . . . . . Parts Stripped . | . . . . . . . . . . . Power Chain Reactions . | . . . . . . . . . . . Alert | -11 -10 -10 -10 -9 -8 -7 -7 -7 -6 -5 ------- Run | Yrd Mat Min Exi Min Mat Fac Low Low Fac Fac Maximum Alert Level 1 | . . . . . 1 . . . . 1 Low Security (%) 95 | 100 100 100 . 100 79 100 . . 100 95 Level 1 4 | . . . . . 20 . . . . 4 Level 2 . | . . . . . . . . . . . Level 3 . | . . . . . . . . . . . Level 4 . | . . . . . . . . . . . Level 5 . | . . . . . . . . . . . High Security . | . . . . . . . . . . . Max Security . | . . . . . . . . . . . Peak Influence 340 | 10 100 50 . . 276 42 . . 27 340 Initial 42 | . . 28 . . . 42 . . 6 . Average 24 | 1 12 3 . . 76 4 . . 3 45 Influence Increases 2075 | 10 445 70 . . 675 43 . 20 67 745 Destroy 0b10 Robot/C 880 | . 300 60 . . 360 . . 20 . 140 Destroy 0b10 Robot/NC 120 | 10 30 . . . 55 5 . . . 20 Destroy Leader 206 | . 72 10 . . 80 2 . . . 42 Successful Hack 109 | . 22 . . . 7 5 . . 49 26 Disable Machine 45 | . . . . . 15 . . . . 30 Anti-Garrison Action 150 | . . . . . 150 . . . . . Destroy Structure 40 | . 6 . . . 8 1 . . 3 22 Partial Spotted 75 | . . . . . . 30 . . 15 30 Lose Combat Pursuer 450 | . 15 . . . . . . . . 435 Influence Decreases 1849 | 10 370 113 32 . 582 136 . 10 77 519 Entered New Map 134 | . . 47 32 . . 51 . . 4 . Time Decay 1128 | 10 370 66 . . 332 85 . 10 73 182 Search Patrol Dispatched 100 | . . . . . . . . . . 100 Lost Part 220 | . . . . . 100 . . . . 120 Purge Threat 267 | . . . . . 150 . . . . 117 Squads Dispatched 27 | . 4 . . . 9 5 . . 1 8 Investigation 3 | . 1 . . . . 1 . . . 1 Extermination 7 | . . . . . . 2 . . 1 4 Reinforcement 12 | . 3 . . . 4 2 . . . 3 Assault 2 | . . . . . 2 . . . . . Garrison 3 | . . . . . 3 . . . . . Intercept . | . . . . . . . . . . . Searches Triggered 1 | . . . . . . . . . . 1 Construction Impeded 1 | . . . . . . . . . . 1 Haulers Reinforced 1 | . . . . . . 1 . . . . Active Scanning Responses . | . . . . . . . . . . . Cargo Convoy Interrupts 1 | . . . . . . . . . . 1 Stealth | -11 -10 -10 -10 -9 -8 -7 -7 -7 -6 -5 --------- Run | Yrd Mat Min Exi Min Mat Fac Low Low Fac Fac Distress Signals 9 | . 2 . . . 2 1 . . . 4 Communications Jammed . | . . . . . . . . . . . Distress Signals . | . . . . . . . . . . . Times Spotted 127 | . 31 4 . . 32 6 7 5 . 42 Peak Tracking Total 13 | . 4 2 . . 4 3 3 5 1 13 Tactical Retreats 21 | . 1 . . . 6 1 3 1 1 8 ECM-based Alert Blocks 17 | . . . . . 11 3 . 2 1 . Traps | -11 -10 -10 -10 -9 -8 -7 -7 -7 -6 -5 ------- Run | Yrd Mat Min Exi Min Mat Fac Low Low Fac Fac Traps Triggered 4 | . 2 . . . . . . . 2 . Indirectly . | . . . . . . . . . . . Trap Hack Attempts . | . . . . . . . . . . . Triggered . | . . . . . . . . . . . Disarmed . | . . . . . . . . . . . Reprogrammed . | . . . . . . . . . . . Reused . | . . . . . . . . . . . Traps Extracted . | . . . . . . . . . . . Installed . | . . . . . . . . . . . Triggered . | . . . . . . . . . . . Machines | -11 -10 -10 -10 -9 -8 -7 -7 -7 -6 -5 ---------- Run | Yrd Mat Min Exi Min Mat Fac Low Low Fac Fac Machines Disabled 5 | . . . . . 2 . 1 . . 2 Max in Single Turn 1 | . . . . . 1 . 1 . . 1 Garrison Access 1 | . . . . . 1 . . . . . Machines Repaired . | . . . . . . . . . . . Machines Dismantled . | . . . . . . . . . . . Machines Sabotaged . | . . . . . . . . . . . Overloaded Fab Kills . | . . . . . . . . . . . Hacking | -11 -10 -10 -10 -9 -8 -7 -7 -7 -6 -5 --------- Run | Yrd Mat Min Exi Min Mat Fac Low Low Fac Fac Machines Accessed 53 | . 8 1 1 . 13 8 1 . 9 12 Terminals 32 | . 5 . . . 8 4 . . 6 9 Fabricators 4 | . . . . . . 2 . . 1 1 Repair Stations 2 | . 1 . . . 1 . . . . . Recycling Units 6 | . 2 . . . 1 . . . 1 2 Scanalyzers 4 | . . . . . 2 1 . . 1 . Garrison Access 2 | . . . . . 1 1 . . . . Total Hacks 123 | . 22 1 1 . 33 17 1 . 21 27 Successful 82 | . 14 1 1 . 20 11 1 . 13 21 Failed 41 | . 8 . . . 13 6 . . 8 6 Catastrophic 8 | . 2 . . . 3 3 . . . . Database Lockouts . | . . . . . . . . . . . Manual 31 | . 9 . 1 . 9 2 1 . 5 4 Terminals 79 | . 18 . . . 19 6 . . 16 20 Fabricators 6 | . . . . . . 3 . . 1 2 Repair Stations 5 | . 2 . . . 3 . . . . . Recycling Units 9 | . 2 . . . 1 . . . 1 5 Scanalyzers 18 | . . . . . 8 7 . . 3 . Garrison Access 3 | . . . . . 2 1 . . . . Terminal Hacks 50 | . 10 1 1 . 10 3 1 . 9 15 Record 10 | . . . . . . . . . 4 6 Robot Analysis 7 | . 3 . . . 1 . . . 1 2 Prototype ID Bank 7 | . 2 . . . 3 . . . 1 1 Open Door 3 | . . 1 . . . . 1 . . 1 Open DSF 1 | . . . . . . . . . 1 . Level Access Points 2 | . . . . . . . . . 1 1 Branch Access Points 1 | . 1 . . . . . . . . . Terminal Index 4 | . 1 . . . 1 1 . . . 1 Recycling Unit Index 1 | . . . . . . 1 . . . . Alert Level 5 | . . . . . 3 . . . 1 1 Unreport Threat 2 | . . . . . 1 . . . . 1 Locate Traps 2 | . 2 . . . . . . . . . Dispatch Records 1 | . . . . . . 1 . . . . Patrol Status 1 | . 1 . . . . . . . . . Hauler Manifests 1 | . . . . . . . . . . 1 Zone Layout 1 | . . . . . 1 . . . . . Proto ID Catalog 1 | . . . 1 . . . . . . . Fabricator Hacks 4 | . . . . . . 1 . . 1 2 Network Status 2 | . . . . . . 1 . . 1 . Load Schematic 1 | . . . . . . . . . . 1 Build 1 | . . . . . . . . . . 1 Repair Station Hacks 5 | . 2 . . . 3 . . . . . Scan Component 3 | . 1 . . . 2 . . . . . Repair 2 | . 1 . . . 1 . . . . . Recycling Unit Hacks 8 | . 2 . . . 1 . . . 1 4 Process 1 | . . . . . . . . . . 1 Report Inventory 4 | . 2 . . . 1 . . . 1 . Retrieve Matter 3 | . . . . . . . . . . 3 Scanalyzer 14 | . . . . . 5 7 . . 2 . Insert Component 4 | . . . . . 1 2 . . 1 . Analyze 2 | . . . . . 1 1 . . . . Retrieve Study 8 | . . . . . 3 4 . . 1 . Garrison Access Hacks . | . . . . . . . . . . . Unauthorized Hacks 1 | . . . . . 1 . . . . . Terminals 1 | . . . . . 1 . . . . . Track 1 | . . . . . 1 . . . . . Fabricators . | . . . . . . . . . . . Repair Stations . | . . . . . . . . . . . Recycling Units . | . . . . . . . . . . . Scanalyzers . | . . . . . . . . . . . Garrison Access . | . . . . . . . . . . . Data Cores Recovered . | . . . . . . . . . . . Used . | . . . . . . . . . . . Hacking Detections 44 | . 6 . . . 12 8 . . 7 11 Full Trace Events 2 | . . . . . . 1 . . . 1 Feedback Events . | . . . . . . . . . . . Feedback Blocked . | . . . . . . . . . . . Robot Schematics Acquired . | . . . . . . . . . . . Robots Built . | . . . . . . . . . . . Authchips . | . . . . . . . . . . . Time . | . . . . . . . . . . . Total Robot Build Rating . | . . . . . . . . . . . Part Schematics Acquired 1 | . . . . . 1 . . . . . Parts Built 1 | . . . . . . . . . . 1 Authchips . | . . . . . . . . . . . Time 73 | . . . . . . . . . . 73 Total Part Build Rating 3 | . . . . . . . . . . 3 Part Studies Acquired 8 | . . . . . 3 4 . . 1 . Parts Repaired 2 | . 1 . . . 1 . . . . . Time 70 | . 38 . . . 32 . . . . . Parts Recycled . | . . . . . . . . . . . Recycled Matter . | . . . . . . . . . . . Retrieved Matter . | . . . . . . . . . . . Retrieved Components . | . . . . . . . . . . . Parts Scanalyzed 2 | . . . . . 1 1 . . . . Part Schematics Acquired 1 | . . . . . 1 . . . . . Parts Damaged . | . . . . . . . . . . . Bothacking | -11 -10 -10 -10 -9 -8 -7 -7 -7 -6 -5 ------------ Run | Yrd Mat Min Exi Min Mat Fac Low Low Fac Fac Used RIF Installer . | . . . . . . . . . . . Robots Hacked 9 | . 9 . . . . . . . . . Non-combat 7 | . 7 . . . . . . . . . Combat 2 | . 2 . . . . . . . . . Robot Hacks Applied 15 | . 15 . . . . . . . . . parse_system 6 | . 6 . . . . . . . . . no_distress 6 | . 6 . . . . . . . . . find_recycling 1 | . 1 . . . . . . . . . check_alert 2 | . 2 . . . . . . . . . Relay Couplers Released 2 | . . . . . 2 . . . . . Machine Destruction 2 | . . . . . 2 . . . . . Fabnet Peak Effective % . | . . . . . . . . . . . Robots Rewired . | . . . . . . . . . . . Allies Hacked . | . . . . . . . . . . . Hacks Repelled . | . . . . . . . . . . . Allies | -11 -10 -10 -10 -9 -8 -7 -7 -7 -6 -5 -------- Run | Yrd Mat Min Exi Min Mat Fac Low Low Fac Fac Total Allies . | . . . . . . . . . . . Largest Group . | . . . . . . . . . . . Highest-Rated Group . | . . . . . . . . . . . Highest-Rated Ally . | . . . . . . . . . . . Total Orders . | . . . . . . . . . . . Ally Attacks . | . . . . . . . . . . . Total Damage . | . . . . . . . . . . . Kills . | . . . . . . . . . . . Allies Corrupted . | . . . . . . . . . . . Allies Melted . | . . . . . . . . . . . Intel | -11 -10 -10 -10 -9 -8 -7 -7 -7 -6 -5 ------- Run | Yrd Mat Min Exi Min Mat Fac Low Low Fac Fac Active Infowar (turns) 11156 | 8 1916 1915 1708 796 1793 797 533 18 415 1257 Sensors 63 | . . . . . 63 . . . . . Structural 3468 | . . . . . 921 797 100 . 397 1253 Seismic 4511 | 8 857 1915 1708 23 . . . . . . T.N.C. 1 | . . . . . 1 . . . . . Machine Analysis 1059 | . 1059 . . . . . . . . . ECM 5222 | . . . . 773 1774 797 533 18 396 931 Robot Analysis Total 5 | . 3 . . . . . . . . 2 Derelict Logs Recovered 5 | . . 1 . 2 . . 2 . . . Drone Launches . | . . . . . . . . . . . Drone Recoveries . | . . . . . . . . . . . Exploration | -11 -10 -10 -10 -9 -8 -7 -7 -7 -6 -5 ------------- Run | Yrd Mat Min Exi Min Mat Fac Low Low Fac Fac Turns Passed 12903 | 85 3285 1915 1708 796 1797 797 556 28 424 1512 Spaces Moved 6855 | 42 893 567 533 244 933 965 930 45 633 1070 Core 13 | 6 . . . . 6 1 . . . . Treads 2452 | 36 893 567 533 244 179 . . . . . Legs 65 | . . . . . 65 . . . . . Wheels . | . . . . . . . . . . . Hover . | . . . . . . . . . . . Flight 4325 | . . . . . 683 964 930 45 633 1070 Fastest Speed 20 | 50 160 320 320 320 26 23 23 23 20 20 Average Speed 132 | 144 302 320 320 320 121 23 23 41 21 27 Slowest Speed 1920 | 160 480 320 320 320 1920 400 23 93 96 99 Overloaded Moves . | . . . . . . . . . . . Propulsion Burnouts . | . . . . . . . . . . . Robots Hopped 8 | . . . . . 5 2 . . . 1 Potential Cave-ins . | . . . . . . . . . . . Cave-ins Triggered . | . . . . . . . . . . . Exploration Rate (%) 52 | 4 96 80 90 59 85 28 87 13 15 23 Regions Visited 10 Branch Regions 5 Pre-discovered Areas 1 | . . . . 1 . . . . . . Known Exits Taken 3 | . 1 . . . . . 1 . 1 . Unknown Exits Taken 7 | 1 . 1 1 1 1 1 . 1 . . Scrap Searched 5 | . . 1 . 1 . . 3 . . . Spaces Dug 17 | . 1 . . . 1 1 . . 3 11 Terrain Destroyed 28 | . 5 . . . 8 1 . . 3 11 Melee 16 | . . . . . 1 1 . . 3 11 Projectile 1 | . 1 . . . . . . . . . AOE 11 | . 4 . . . 7 . . . . . Terrain Rammed . | . . . . . . . . . . . Walls Destroyed . | . . . . . . . . . . . Machines Disabled . | . . . . . . . . . . . Actions | -11 -10 -10 -10 -9 -8 -7 -7 -7 -6 -5 --------- Run | Yrd Mat Min Exi Min Mat Fac Low Low Fac Fac Total 10227 | 55 1346 640 537 261 1460 1528 1263 51 915 2171 Wait 2867 | 1 317 45 . 14 381 547 316 1 223 1022 Move 6831 | 41 892 566 532 243 924 960 929 44 632 1068 Hop 6 | . . . . . 3 2 . . . 1 Pick Up 44 | 2 14 4 1 1 13 1 2 1 4 1 Fast Attach 45 | 7 5 . . . 14 3 4 . 5 7 Attach 40 | . 1 2 . 1 21 2 1 1 3 8 Detach 14 | . 2 . . . 6 . . . 1 5 Swap 48 | . 25 6 . 1 5 4 1 1 4 1 Drop 54 | . 5 3 . 1 19 6 6 1 11 2 Fire 125 | 4 63 14 . . 42 . . 2 . . Melee 121 | . 22 . . . 32 3 4 . 4 56 Ram . | . . . . . . . . . . . Kick . | . . . . . . . . . . . Crush . | . . . . . . . . . . . Escape Stasis 28 | . . . . . . . . . 28 . Rewire 4 | . . . 4 . . . . . . . Trap . | . . . . . . . . . . . Miscellaneous . | . . . . . . . . . . . Route ------- -11/Scrapyard -10/Materials (discovered 5 exits: [*Mat x2] / *Min x2 / [*Sub]) -10/Mines (discovered 4 exits: [*Mat x2] / *Exi / [*Sub]) -10/Exiles -9/Mines -8/Materials (discovered 2 exits: *Fac x2) -7/Factory -7/Lower Caves -7/Lower Caves -6/Factory (discovered 4 exits: *Fac x4) -5/Factory (discovered 6 exits: Fac x4 / [*Upp] / [*Ext]) History --------- Turn | Location | Event 2 | -11/Scrapyard | Met Revision 17 9 | -11/Scrapyard | Discovered new exit (range 14) 86 | -11/Scrapyard | Entered Materials 333 | -10/Materials | Build established: Mutant 882 | -10/Materials | Discovered new exit (range 14) 1012 | -10/Materials | Discovered new exit (range 13) 1108 | -10/Materials | Repaired Hacking Suite 1260 | -10/Materials | Discovered new exit (range 10) 1894 | -10/Materials | Identified exit to Mines 2314 | -10/Materials | Discovered new exit (range 13) 3371 | -10/Materials | Entered Mines 3593 | -10/Mines | Met a Derelict who couldn't figure out how to use a Trap Extractor 4008 | -10/Mines | Learned Materials emergency access door positions 4030 | -10/Mines | Discovered new exit (range 13) 4341 | -10/Mines | Received a Rocket Launcher from a helpful Derelict 4872 | -10/Mines | Discovered new exit (range 8) 4988 | -10/Mines | Discovered new exit (range 10) 4994 | -10/Mines | Found DCF Scrap (11 items) 5273 | -10/Mines | Deemed a non-threat by the Exiles lab entrance 5273 | -10/Mines | Discovered new exit (range 5) 5286 | -10/Mines | Entered Exiles 5373 | -10/Exiles | Met 8R-AWN 5427 | -10/Exiles | Met EX-HEX 5620 | -10/Exiles | Met EX-BIN 5659 | -10/Exiles | Aligned with FarCom system 5662 | -10/Exiles | Given EX-Vault access code 5739 | -10/Exiles | Opened EX-Vault 5767 | -10/Exiles | Found YOLO Cannon 5855 | -10/Exiles | Warned to stay clear of 0b10 Research branches 5944 | -10/Exiles | Met EX-DEC 6176 | -10/Exiles | Visited The Gauntlet 6959 | -10/Exiles | Discovered new exit (range 14) 6994 | -10/Exiles | Left Exiles lab with YOLO Cannon 6994 | -10/Exiles | Entered Mines 7450 | -9/Mines | Learned location of Storage (-7) 7469 | -9/Mines | Learned Materials trap positions 7501 | -9/Mines | Found a damaged Exp. Sensor Array with a note attached 7507 | -9/Mines | Found Prototype Device 7758 | -9/Mines | Discovered new exit (range 10) 7790 | -9/Mines | Entered Materials 7790 | -8/Materials | Evolved 4 slots: Propulsion x2, Utility x2 7791 | -8/Materials | Loaded intel: 16 trap records 7819 | -8/Materials | Identified Exp. Sensor Array 8174 | -8/Materials | Build established: Scavenger-Mutant 8589 | -8/Materials | Garrison activated, responded to threat 8614 | -8/Materials | Lost 3 parts (1n2w) 8934 | -8/Materials | Met 7R-MNS 9136 | -8/Materials | Core integrity fell below 50% 9171 | -8/Materials | Build established: Infiltrator-Mutant 9323 | -8/Materials | Discovered new exit (range 16) 9502 | -8/Materials | Repaired Weight Redist. System 9580 | -8/Materials | Discovered new exit (range 12) 9582 | -8/Materials | Build established: Infiltrator-Sprinter 9587 | -8/Materials | Entered Factory 9587 | -7/Factory | Evolved 2 slots: Power x1, Propulsion x1 9588 | -7/Factory | Caught up to 7R-MNS 10365 | -7/Factory | Discovered new exit (range 4) 10384 | -7/Factory | Entered Lower Caves 10658 | -7/Lower Caves | Attacked by a faux Warlord 10709 | -7/Lower Caves | Encountered a Warlord checkpoint 10727 | -7/Lower Caves | Identified exit to Lower Caves 10732 | -7/Lower Caves | Acquired the password to a Derelict Tinkerer's latest research 10740 | -7/Lower Caves | Found Prototype Special Weapon 10740 | -7/Lower Caves | Identified Molecular Deconstructor 10803 | -7/Lower Caves | Entered a destroyed Warlord outpost 10803 | -7/Lower Caves | Learned Factory stockpile data 10935 | -7/Lower Caves | Caught by Unaware searching for contraband prototypes 10940 | -7/Lower Caves | Entered another Lower Caves area 10942 | -7/Lower Caves | Attracted the attention of an 0b10 checkpoint 10966 | -7/Lower Caves | Discovered new exit (range 5) 10968 | -7/Lower Caves | Entered Factory 10968 | -6/Factory | Evolved 2 slots: Propulsion x1, Utility x1 11130 | -6/Factory | Identified exit to Factory 11132 | -6/Factory | Identified exit to DSF 11255 | -6/Factory | Build established: Hacker-Sprinter 11392 | -6/Factory | Entered another Factory area 11392 | -5/Factory | Evolved 2 slots: Power x1, Utility x1 11534 | -5/Factory | Discovered new exit (range 6) 11634 | -5/Factory | Discovered new exit (range 5) 12180 | -5/Factory | Fabricated Hacking Suite? 12578 | -5/Factory | Identified exit to Factory 12584 | -5/Factory | Cargo convoy interrupted 12751 | -5/Factory | Lost 5 parts (2p1n2u) 12892 | -5/Factory | Search patrols dispatched 12903 | -5/Factory | Core integrity fell below 50% 12904 | -5/Factory | Self-destructed Last Messages --------------- 12896_ P-70 Sage system corrupted by crushing effect. 12896_ Sneak attack on P-70 Sage. 12896_ Power Maul+ follow-up attack on P-70 Sage. 12896_ Destroyed Mic. Fission Core. 12896_ Destroyed Imp. Heat Sink. 12896_ P-70 Sage system corrupted by crushing effect. 12897_ Power Maul+ destroyed. 12897_ Penetrated by Slug. 12897_ Hacking Suite destroyed. 12899_ Penetrated by Slug. 12900_ R-10 Processor collects Imp. VTOL Module. 12901_ P-70 Sage misfires. 12901_ U-05 Engineer builds a Door. 12902_ Penetrated by Slug. 12902_ P-70 Sage resets P-70 Sage, system corruption cleaned. 12904_ Hacking Suite destroyed. Map ----- +----------------------------------------------------+ | ??????????????????## ##??????????????????????????? | | ??????#+########### ### ?????????????????? | | "